Workbook

Sheet importar

Sheet F350
L2: Declaración Retenciones en la Fuente | AN2: Privada
B5: 1. Año | E5: 2 | F5: 0 | G5: 2 | H5: 2 | U5: 3. Período | X5: =IFERROR(MID(VLOOKUP(Datos!seleccion,Tablas!I3:J14,2,FALSE),1,1),0) -> 0 | Y5: =IFERROR(MID(VLOOKUP(Datos!seleccion,Tablas!I3:J14,2,FALSE),2,1),0) -> 0 | BD5: 1
B6: Espacio reservado para la DIAN | AB6: 4. Número de Formulario
B11: Datos del declarante | C11: 5. Número de Identificación Tributaria (NIT) | Q11: 6. DV | R11: 7. Primer apellido | AA11: 8. Segundo apellido | AI11: 9. Primer nombre | AQ11: 10. Otros nombres
C12: =MID(Datos!$E$10,1,1) ->  | D12: =MID(Datos!$E$10,2,1) ->  | E12: =MID(Datos!$E$10,3,1) ->  | F12: =MID(Datos!$E$10,4,1) ->  | G12: =MID(Datos!$E$10,5,1) ->  | H12: =MID(Datos!$E$10,6,1) ->  | I12: =MID(Datos!$E$10,7,1) ->  | J12: =MID(Datos!$E$10,8,1) ->  | K12: =MID(Datos!$E$10,9,1) ->  | L12: =MID(Datos!$E$10,10,1) ->  | M12: =MID(Datos!$E$10,11,1) ->  | N12: =MID(Datos!$E$10,12,1) ->  | O12: =MID(Datos!$E$10,13,1) ->  | P12: =MID(Datos!$E$10,14,1) ->  | Q12: =IF(Datos!H10=0,"",Datos!H10) ->  | R12: =IF(Datos!E12="Persona natural",IF(Datos!E14=0,"",Datos!E14),"") ->  | AA12: =IF(Datos!E12="Persona natural",IF(Datos!J14=0,"",Datos!J14),"") ->  | AI12: =IF(Datos!E12="Persona natural",IF(Datos!E16=0,"",Datos!E16),"") ->  | AQ12: =IF(Datos!E12="Persona natural",IF(Datos!J16=0,"",Datos!J16),"") -> 
C14: 11. Razón Social | AW14: 12. Cód. Dirección Seccional.
C15: =IF(Datos!E12="Persona jurídica o sociedad de hecho",IF(Datos!E18=0,"",Datos!E18),"") ->  | AW15: =MID(Datos!L20,1,1) -> 0 | AY15: =MID(Datos!L20,2,1) -> 0
B16: Si es una corrección Indique: | J16: 25. Cód. | M16: =IF(Datos!E23="","",Datos!E23) ->  | P16: 26. No. Formulario anterior | W16: =IF(Datos!J23="","",Datos!J23) ->  | AC16: 98. Autorretenedores personas jurídicas exonerados de aportes (Art. 114-1 E.T.). | AU16: 99.Tarifa
B17: Concepto | AB17: Base sujeta a retención para pagos o abonos en cuenta | AP17: Retenciones a título de renta
B18: Rentas de trabajo | AB18: 27 | AC18: =ROUND(IF(AB18<>"",IFERROR(VLOOKUP(AB18,importar!$A$2:'importar'!$B$35,2,FALSE),0),0),-3) -> 0 | AP18: 52 | AQ18: =ROUND(IF(AB18<>"",IFERROR(VLOOKUP(AB18,importar!$A$2:'importar'!$C$35,3,FALSE),0),0),-3) -> 0
B19: Rentas de pensiones | AB19: =AB18+1 -> 28 | AC19: =ROUND(IF(AB19<>"",IFERROR(VLOOKUP(AB19,importar!$A$2:'importar'!$B$35,2,FALSE),0),0),-3) -> 0 | AP19: 53 | AQ19: =ROUND(IF(AB19<>"",IFERROR(VLOOKUP(AB19,importar!$A$2:'importar'!$C$35,3,FALSE),0),0),-3) -> 0
B20: Honorarios | AB20: 29 | AC20: =ROUND(IF(AB20<>"",IFERROR(VLOOKUP(AB20,importar!$A$2:'importar'!$B$35,2,FALSE),0),0),-3) -> 0 | AP20: 54 | AQ20: =ROUND(IF(AB20<>"",IFERROR(VLOOKUP(AB20,importar!$A$2:'importar'!$C$35,3,FALSE),0),0),-3) -> 0
B21: Comisiones | AB21: 30 | AC21: =ROUND(IF(AB21<>"",IFERROR(VLOOKUP(AB21,importar!$A$2:'importar'!$B$35,2,FALSE),0),0),-3) -> 0 | AP21: 55 | AQ21: =ROUND(IF(AB21<>"",IFERROR(VLOOKUP(AB21,importar!$A$2:'importar'!$C$35,3,FALSE),0),0),-3) -> 0
B22: Servicios | AB22: 31 | AC22: =ROUND(IF(AB22<>"",IFERROR(VLOOKUP(AB22,importar!$A$2:'importar'!$B$35,2,FALSE),0),0),-3) -> 0 | AP22: 56 | AQ22: =ROUND(IF(AB22<>"",IFERROR(VLOOKUP(AB22,importar!$A$2:'importar'!$C$35,3,FALSE),0),0),-3) -> 0
B23: Rendimientos financieros e intereses | AB23: 32 | AC23: =ROUND(IF(AB23<>"",IFERROR(VLOOKUP(AB23,importar!$A$2:'importar'!$B$35,2,FALSE),0),0),-3) -> 0 | AP23: 57 | AQ23: =ROUND(IF(AB23<>"",IFERROR(VLOOKUP(AB23,importar!$A$2:'importar'!$C$35,3,FALSE),0),0),-3) -> 0
B24: Arrendamientos (Muebles e inmuebles) | AB24: 33 | AC24: =ROUND(IF(AB24<>"",IFERROR(VLOOKUP(AB24,importar!$A$2:'importar'!$B$35,2,FALSE),0),0),-3) -> 0 | AP24: 58 | AQ24: =ROUND(IF(AB24<>"",IFERROR(VLOOKUP(AB24,importar!$A$2:'importar'!$C$35,3,FALSE),0),0),-3) -> 0
B25: Regalias y explotación de la propiedad intelectual | AB25: 34 | AC25: =ROUND(IF(AB25<>"",IFERROR(VLOOKUP(AB25,importar!$A$2:'importar'!$B$35,2,FALSE),0),0),-3) -> 0 | AP25: 59 | AQ25: =ROUND(IF(AB25<>"",IFERROR(VLOOKUP(AB25,importar!$A$2:'importar'!$C$35,3,FALSE),0),0),-3) -> 0
B26: Dividendos y participaciones | AB26: 35 | AC26: =ROUND(IF(AB26<>"",IFERROR(VLOOKUP(AB26,importar!$A$2:'importar'!$B$35,2,FALSE),0),0),-3) -> 0 | AP26: 60 | AQ26: =ROUND(IF(AB26<>"",IFERROR(VLOOKUP(AB26,importar!$A$2:'importar'!$C$35,3,FALSE),0),0),-3) -> 0
B27: Compras | AB27: 36 | AC27: =ROUND(IF(AB27<>"",IFERROR(VLOOKUP(AB27,importar!$A$2:'importar'!$B$35,2,FALSE),0),0),-3) -> 0 | AP27: 61 | AQ27: =ROUND(IF(AB27<>"",IFERROR(VLOOKUP(AB27,importar!$A$2:'importar'!$C$35,3,FALSE),0),0),-3) -> 0
B28: Transacciones con tarjetas débito y crédito | AB28: 37 | AC28: =ROUND(IF(AB28<>"",IFERROR(VLOOKUP(AB28,importar!$A$2:'importar'!$B$35,2,FALSE),0),0),-3) -> 0 | AP28: 62 | AQ28: =ROUND(IF(AB28<>"",IFERROR(VLOOKUP(AB28,importar!$A$2:'importar'!$C$35,3,FALSE),0),0),-3) -> 0
B29: Contratos de Construcción | AB29: 38 | AC29: =ROUND(IF(AB29<>"",IFERROR(VLOOKUP(AB29,importar!$A$2:'importar'!$B$35,2,FALSE),0),0),-3) -> 0 | AP29: 63 | AQ29: =ROUND(IF(AB29<>"",IFERROR(VLOOKUP(AB29,importar!$A$2:'importar'!$C$35,3,FALSE),0),0),-3) -> 0
B30: Enajenación de activos fijos de personas naturales ante notarios y autoridades de tránsito | AB30: 39 | AC30: =ROUND(IF(AB30<>"",IFERROR(VLOOKUP(AB30,importar!$A$2:'importar'!$B$35,2,FALSE),0),0),-3) -> 0 | AP30: 64 | AQ30: =ROUND(IF(AB30<>"",IFERROR(VLOOKUP(AB30,importar!$A$2:'importar'!$C$35,3,FALSE),0),0),-3) -> 0
B31: Loterias, rifas apuestas y similares | AB31: =AB30+1 -> 40 | AC31: =ROUND(IF(AB31<>"",IFERROR(VLOOKUP(AB31,importar!$A$2:'importar'!$B$35,2,FALSE),0),0),-3) -> 0 | AP31: 65 | AQ31: =ROUND(IF(AB31<>"",IFERROR(VLOOKUP(AB31,importar!$A$2:'importar'!$C$35,3,FALSE),0),0),-3) -> 0
B32: Otros pagos sujetos a retención | AB32: 41 | AC32: =ROUND(IF(AB32<>"",IFERROR(VLOOKUP(AB32,importar!$A$2:'importar'!$B$35,2,FALSE),0),0),-3) -> 0 | AP32: 66 | AQ32: =ROUND(IF(AB32<>"",IFERROR(VLOOKUP(AB32,importar!$A$2:'importar'!$C$35,3,FALSE),0),0),-3) -> 0
B33: Autorretenciones | C33: Contribuyentes exonerados de aportes (Art. 114 -1 E.T.) | AB33: 42 | AC33: =ROUND(IF(AB33<>"",IFERROR(VLOOKUP(AB33,importar!$A$2:'importar'!$B$35,2,FALSE),0),0),-3) -> 0 | AP33: 67 | AQ33: =ROUND(IF(AB33<>"",IFERROR(VLOOKUP(AB33,importar!$A$2:'importar'!$C$35,3,FALSE),0),0),-3) -> 0
C34: Ventas | AB34: 43 | AC34: =ROUND(IF(AB34<>"",IFERROR(VLOOKUP(AB34,importar!$A$2:'importar'!$B$35,2,FALSE),0),0),-3) -> 0 | AP34: 68 | AQ34: =ROUND(IF(AB34<>"",IFERROR(VLOOKUP(AB34,importar!$A$2:'importar'!$C$35,3,FALSE),0),0),-3) -> 0
C35: Honorarios | AB35: 44 | AC35: =ROUND(IF(AB35<>"",IFERROR(VLOOKUP(AB35,importar!$A$2:'importar'!$B$35,2,FALSE),0),0),-3) -> 0 | AP35: 69 | AQ35: =ROUND(IF(AB35<>"",IFERROR(VLOOKUP(AB35,importar!$A$2:'importar'!$C$35,3,FALSE),0),0),-3) -> 0
C36: Comisiones | AB36: 45 | AC36: =ROUND(IF(AB36<>"",IFERROR(VLOOKUP(AB36,importar!$A$2:'importar'!$B$35,2,FALSE),0),0),-3) -> 0 | AP36: 70 | AQ36: =ROUND(IF(AB36<>"",IFERROR(VLOOKUP(AB36,importar!$A$2:'importar'!$C$35,3,FALSE),0),0),-3) -> 0
C37: Servicios | AB37: 46 | AC37: =ROUND(IF(AB37<>"",IFERROR(VLOOKUP(AB37,importar!$A$2:'importar'!$B$35,2,FALSE),0),0),-3) -> 0 | AP37: 71 | AQ37: =ROUND(IF(AB37<>"",IFERROR(VLOOKUP(AB37,importar!$A$2:'importar'!$C$35,3,FALSE),0),0),-3) -> 0
C38: Rendimientos financieros | AB38: 47 | AC38: =ROUND(IF(AB38<>"",IFERROR(VLOOKUP(AB38,importar!$A$2:'importar'!$B$35,2,FALSE),0),0),-3) -> 0 | AP38: 72 | AQ38: =ROUND(IF(AB38<>"",IFERROR(VLOOKUP(AB38,importar!$A$2:'importar'!$C$35,3,FALSE),0),0),-3) -> 0
C39: Pagos mensuales provisionales de carácter voluntario (hidrocarburos y demás productos mineros) | AB39: 48 | AC39: =ROUND(IF(AB39<>"",IFERROR(VLOOKUP(AB39,importar!$A$2:'importar'!$B$35,2,FALSE),0),0),-3) -> 0 | AP39: 73 | AQ39: =ROUND(IF(AB39<>"",IFERROR(VLOOKUP(AB39,importar!$A$2:'importar'!$C$35,3,FALSE),0),0),-3) -> 0
C40: Otros conceptos | AB40: 49 | AC40: =ROUND(IF(AB40<>"",IFERROR(VLOOKUP(AB40,importar!$A$2:'importar'!$B$35,2,FALSE),0),0),-3) -> 0 | AP40: 74 | AQ40: =ROUND(IF(AB40<>"",IFERROR(VLOOKUP(AB40,importar!$A$2:'importar'!$C$35,3,FALSE),0),0),-3) -> 0
B41: Pagos o abonos en cuenta al exterior a paises sin convenio | AB41: 50 | AC41: =ROUND(IF(AB41<>"",IFERROR(VLOOKUP(AB41,importar!$A$2:'importar'!$B$35,2,FALSE),0),0),-3) -> 0 | AP41: 75 | AQ41: =ROUND(IF(AB41<>"",IFERROR(VLOOKUP(AB41,importar!$A$2:'importar'!$C$35,3,FALSE),0),0),-3) -> 0
B42: Pagos o abonos en cuenta al exterior a paises con convenio vigente | AB42: 51 | AC42: =ROUND(IF(AB42<>"",IFERROR(VLOOKUP(AB42,importar!$A$2:'importar'!$B$35,2,FALSE),0),0),-3) -> 0 | AP42: 76 | AQ42: =ROUND(IF(AB42<>"",IFERROR(VLOOKUP(AB42,importar!$A$2:'importar'!$C$35,3,FALSE),0),0),-3) -> 0
B43: Menos retenciones practicadas en exceso o indebidas o por operaciones anuladas, rescindidas o resueltas. | AP43: 77 | AQ43: =ROUND(IF(AP43<>"",IFERROR(VLOOKUP(AP43,importar!$A$2:'importar'!$C$35,3,FALSE),0),0),-3) -> 0
B44: Total retenciones renta y complementarios (Sume casillas 52 a 76 y reste casilla 77) | AP44: 78 | AQ44: =SUM(AQ18:AZ42)-AQ43 -> 0
B45: Retenciones practicadas por otros impuestos
B46: A título de IVA | C46: A responsables del impuesto sobre las ventas | AP46: 79 | AQ46: =ROUND(IF(AP46<>"",IFERROR(VLOOKUP(AP46,importar!$A$2:'importar'!$C$35,3,FALSE),0),0),-3) -> 0
C47: Practicadas por servicios a no residentes o no domiciliados | AP47: 80 | AQ47: =ROUND(IF(AP47<>"",IFERROR(VLOOKUP(AP47,importar!$A$2:'importar'!$C$35,3,FALSE),0),0),-3) -> 0
C48: Menos retenciones practicadas en exceso o indebidas o por operaciones anuladas, rescindidas o resueltas | AP48: 81 | AQ48: =ROUND(IF(AP48<>"",IFERROR(VLOOKUP(AP48,importar!$A$2:'importar'!$C$35,3,FALSE),0),0),-3) -> 0
C49: Total retenciones I.V.A. (Sume 79 a 80 y reste 81) | AP49: 82 | AQ49: =SUM(AQ46:AZ47)-AQ48 -> 0
B50: Retenciones Impuesto de timbre nacional | AP50: 83 | AQ50: =ROUND(IF(AP50<>"",IFERROR(VLOOKUP(AP50,importar!$A$2:'importar'!$C$35,3,FALSE),0),0),-3) -> 0
B51: Retenciones contribución laudos arbitrales | AP51: 84 | AQ51: =ROUND(IF(AP51<>"",IFERROR(VLOOKUP(AP51,importar!$A$2:'importar'!$C$35,3,FALSE),0),0),-3) -> 0
B52: Total | C52: Total Retenciones (78 + 82 + 83 + 84) | AP52: 85 | AQ52: =+AQ44+AQ49+AQ50+AQ51 -> 0
C53: Sanciones | AP53: 86 | AQ53: =ROUND(IF(AP53<>"",IFERROR(VLOOKUP(AP53,importar!$A$2:'importar'!$C$35,3,FALSE),0),0),-3) -> 0
C54: Total retenciones más sanciones (85 + 86) | AP54: 87 | AQ54: =AQ52+AQ53 -> 0
B55: 88. No. Identificación signatario | V55: 89. DV
B56: 981.Cód. Representación | I56: =+MID(Datos!L31,1,1) ->  | J56: =+MID(Datos!L31,2,1) ->  | Q56: 997. Espacio exclusivo para el Sello de la entidad recaudadora
B57: Firma del declarante o de quien lo representa | Q57: (Fecha efectiva de la transacción) | AG57: 980. Pago Total | AO57: $ | AP57: =+AQ54 -> 0
B59: 982. Código Contador o Revisor Fiscal | M59: =IF(Datos!E33=0,"",Datos!E33) ->  | AG59: 996. Espacio para el número interno de la DIAN / Adhesivo
B60: Firma Contador o Revisor Fiscal. 994. Con salvedades | O60: =IF(Datos!E35="Sí","X","") -> 
Q61: Coloque el timbre de la máquina
B62: 983. No. Tarjeta profesional | J62: =IF(Datos!J33=0,"",Datos!J33) ->  | Q62: registradora al dorso de este formulario

Sheet Anexo
B1: Renglón | D1: Renglón | E1: Concepto | F1: Código cuenta contable | G1: Nombre del beneficiario del pago o abono en cuenta | H1: NIT | I1: Retención en la fuente a título de renta, IVA, Timbre e INC | K1: Devolución de retenciones de períodos anteriores
I2: Base sujeta a retención para pagos o abonos en cuenta | J2: Retenciones a título de renta
B4: 27 | D4: 52 | E4: Rentas de trabajo | I4: 4800000 | J4: 270000
E8: SUBTOTAL | I8: =SUM(I4:I7) -> 4800000 | J8: =SUM(J4:J7) -> 270000
B10: 28 | D10: 53 | E10: Rentas de pensiones
E14: SUBTOTAL | I14: =SUM(I10:I13) -> 0 | J14: =SUM(J10:J13) -> 0
B16: 29 | D16: 54 | E16: Honorarios
E20: SUBTOTAL | I20: =SUM(I16:I19) -> 0 | J20: =SUM(J16:J19) -> 0
B22: 30 | D22: 55 | E22: Comisiones
E26: SUBTOTAL | I26: =SUM(I22:I25) -> 0 | J26: =SUM(J22:J25) -> 0
B28: 31 | D28: 56 | E28: Servicios | I28: 3015200 | J28: 172000
E32: SUBTOTAL | I32: =SUM(I28:I31) -> 3015200 | J32: =SUM(J28:J31) -> 172000
B34: 32 | D34: 57 | E34: Rendimientos financieros e intereses
E38: SUBTOTAL | I38: =SUM(I34:I37) -> 0 | J38: =SUM(J34:J37) -> 0
B40: 33 | D40: 58 | E40: Arrendamientos (Muebles e inmuebles) | I40: 500000 | J40: 20000
E44: SUBTOTAL | I44: =SUM(I40:I43) -> 500000 | J44: =SUM(J40:J43) -> 20000
B46: 34 | D46: 59 | E46: Regalias y explotación de la propiedad intelectual
E50: SUBTOTAL | I50: =SUM(I46:I49) -> 0 | J50: =SUM(J46:J49) -> 0
B52: 35 | D52: 60 | E52: Dividendos y participaciones
E56: SUBTOTAL | I56: =SUM(I52:I55) -> 0 | J56: =SUM(J52:J55) -> 0
B58: 36 | D58: 61 | E58: Compras | I58: 6000000 | J58: 126000
E62: SUBTOTAL | I62: =SUM(I58:I61) -> 6000000 | J62: =SUM(J58:J61) -> 126000
B64: 37 | D64: 62 | E64: Transacciones con tarjetas débito y crédito
E68: SUBTOTAL | I68: =SUM(I64:I67) -> 0 | J68: =SUM(J64:J67) -> 0
B70: 38 | D70: 63 | E70: Contratos de Construcción
E74: SUBTOTAL | I74: =SUM(I70:I73) -> 0 | J74: =SUM(J70:J73) -> 0
B76: 39 | D76: 64 | E76: Enajenación de activos fijos de personas naturales ante notarios y autoridades de tránsito
E80: SUBTOTAL | I80: =SUM(I76:I79) -> 0 | J80: =SUM(J76:J79) -> 0
B82: 40 | D82: 65 | E82: Loterias, rifas, apuestas y similares
E86: SUBTOTAL | I86: =SUM(I82:I85) -> 0 | J86: =SUM(J82:J85) -> 0
B88: 41 | D88: 66 | E88: Otros pagos sujetos a retención
E92: SUBTOTAL | I92: =SUM(I88:I91) -> 0 | J92: =SUM(J88:J91) -> 0
D94: AUTORRETENCIONES
B96: 42 | D96: 67 | E96: Contribuyentes exonerados de aportes (artículo 114 -1 del ET) | I96: 2000000 | J96: 50000
E100: SUBTOTAL | I100: =SUM(I96:I99) -> 2000000 | J100: =SUM(J96:J99) -> 50000
B102: 43 | D102: 68 | E102: Ventas
E106: SUBTOTAL | I106: =SUM(I102:I105) -> 0 | J106: =SUM(J102:J105) -> 0
B108: 44 | D108: 69 | E108: Honorarios
E112: SUBTOTAL | I112: =SUM(I108:I111) -> 0 | J112: =SUM(J108:J111) -> 0
B114: 45 | D114: 70 | E114: Comisiones
E118: SUBTOTAL | I118: =SUM(I114:I117) -> 0 | J118: =SUM(J114:J117) -> 0
B120: 46 | D120: 71 | E120: Servicios
E124: SUBTOTAL | I124: =SUM(I120:I123) -> 0 | J124: =SUM(J120:J123) -> 0
B126: 47 | D126: 72 | E126: Rendimientos financieros
E130: SUBTOTAL | I130: =SUM(I126:I129) -> 0 | J130: =SUM(J126:J129) -> 0
B132: 48 | D132: 73 | E132: Pagos mensuales provisionales de carácter voluntario (hidrocarburos y demás productos mineros)
I136: =SUM(I132:I135) -> 0 | J136: =SUM(J132:J135) -> 0
B138: 49 | D138: 74 | E138: Otros conceptos
E142: SUBTOTAL | I142: =SUM(I138:I141) -> 0 | J142: =SUM(J138:J141) -> 0
B145: 50 | D145: 75 | E145: Pagos o abonos en cuenta al exterior a países sin convenio
E149: SUBTOTAL | I149: =SUM(I145:I148) -> 0 | J149: =SUM(J145:J148) -> 0
B151: 51 | D151: 76 | E151: Pagos o abonos en cuenta al exterior a países con convenio vigente
E155: SUBTOTAL | I155: =SUM(I151:I154) -> 0 | J155: =SUM(J151:J154) -> 0
D157: 77 | E157: Menos retenciones practicadas en exceso o indebidas o por operaciones anuladas, rescindidas o resueltas | J157: 300000
E161: SUBTOTAL | J161: =SUM(J157:J160) -> 300000
D163: A TÍTULO DE IVA
D165: 79 | E165: A responsables del impuesto sobre las ventas | J165: 142500
E169: SUBTOTAL | J169: =SUM(J165:J168) -> 142500
D171: 80 | E171: Retención de IVA - Practicadas por servicios a no residentes o no domiciliados
E175: SUBTOTAL | J175: =SUM(J171:J174) -> 0
D177: 81 | E177: Menos retenciones practicadas en exceso o indebidas o por operaciones anuladas, rescindidas o resueltas
E181: SUBTOTAL | J181: =SUM(J177:J180) -> 0
D184: 83 | E184: Retenciones impuesto de timbre nacional
E188: SUBTOTAL | J188: =SUM(J184:J187) -> 0
D190: 84 | E190: Retenciones contribución laudos arbitrales
E194: SUBTOTAL | J194: =SUM(J190:J193) -> 0
D196: 86 | E196: Sanciones
E200: SUBTOTAL | J200: =SUM(J196:J199) -> 0

Sheet Vencimientos
A1: Retención en la fuente y autorretención del impuesto de renta y complementarios
A2: Declaración y pago mensual 2023
A5: Último dígito del NIT | B5: Ene | C5: Feb | D5: Mar | E5: Abr | F5: May | G5: Jun | H5: Jul | I5: Ago | J5: Sep | K5: Oct | L5: Nov | M5: Dic
B6: Plazo máximo para consignar en 2023
B7: Feb | C7: Mar | D7: Abr | E7: May | F7: Jun | G7: Jul | H7: Ago | I7: Sep | J7: Oct | K7: Nov | L7: Dic | M7: Ene 2024
A8: 1 | B8: 7 | C8: 7 | D8: 10 | E8: 9 | F8: 7 | G8: 7 | H8: 9 | I8: 7 | J8: 10 | K8: 8 | L8: 11 | M8: 10
A9: 2 | B9: 8 | C9: 8 | D9: 11 | E9: 10 | F9: 8 | G9: 10 | H9: 10 | I9: 8 | J9: 11 | K9: 9 | L9: 12 | M9: 11
A10: 3 | B10: 9 | C10: 9 | D10: 12 | E10: 11 | F10: 9 | G10: 11 | H10: 11 | I10: 11 | J10: 12 | K10: 10 | L10: 13 | M10: 12
A11: 4 | B11: 10 | C11: 10 | D11: 13 | E11: 12 | F11: 13 | G11: 12 | H11: 14 | I11: 12 | J11: 13 | K11: 14 | L11: 14 | M11: 15
A12: 5 | B12: 13 | C12: 13 | D12: 14 | E12: 15 | F12: 14 | G12: 13 | H12: 15 | I12: 13 | J12: 17 | K12: 15 | L12: 15 | M12: 16
A13: 6 | B13: 14 | C13: 14 | D13: 17 | E13: 16 | F13: 15 | G13: 14 | H13: 16 | I13: 14 | J13: 18 | K13: 16 | L13: 18 | M13: 17
A14: 7 | B14: 15 | C14: 15 | D14: 18 | E14: 17 | F14: 16 | G14: 17 | H14: 17 | I14: 15 | J14: 19 | K14: 17 | L14: 19 | M14: 18
A15: 8 | B15: 16 | C15: 16 | D15: 19 | E15: 18 | F15: 20 | G15: 18 | H15: 18 | I15: 18 | J15: 20 | K15: 20 | L15: 20 | M15: 19
A16: 9 | B16: 17 | C16: 17 | D16: 20 | E16: 19 | F16: 21 | G16: 19 | H16: 22 | I16: 19 | J16: 23 | K16: 21 | L16: 21 | M16: 22
A17: 0 | B17: 20 | C17: 21 | D17: 21 | E17: 23 | F17: 22 | G17: 21 | H17: 23 | I17: 20 | J17: 24 | K17: 22 | L17: 22 | M17: 23
A19: *Estos plazos aplican para la declaración y pago de retención en la fuente y/o autorretención del impuesto de renta y complementario, impuesto de timbre, IVA y contribución por laudos arbitrales.

Sheet Datos
A1: DATOS INICIALES
C4: 1. Año | E4: 2022
C6: 3. Período
A8: DATOS DEL DECLARANTE
C10: 5. NIT | G10: 6. DV | H10: =IF(Formulas!A2=0,0,IF(Formulas!A2=1,1,11-Formulas!A2)) -> 0
B12: Tipo de agente
B14: 7. Primer apellido | G14: 8. Segundo apellido
B16: 9. Primer nombre | G16: 10. Otros nombres
B18: 11. Razón social
B20: 12. Cód. Direccíon Seccional | E20: Nivel Central | L20: =IFERROR(VLOOKUP(E20,Tablas!C16:D67,2,FALSE),"") -> 00
B21: Si es una corrección indique
B23: 25. Código | G23: 26. No. Formulario anterior
A25: DATOS DEL SIGNATARIO
A27: 89. No. Identificación signatario | G27: 90. DV | H27: =IF(Formulas!A3=0,0,IF(Formulas!A3=1,1,11-Formulas!A3)) -> 0
A29: SECCIÓN FIRMAS
B31: 981. Código representación | L31: =IFERROR(IF(E12="Persona natural",VLOOKUP(E31,Tablas!I18:J41,2,FALSE),IF(E12="Persona jurídica o sociedad de hecho",VLOOKUP(E31,Tablas!K18:L38,2,FALSE),"")),"") -> 
B33: 982. Código | G33: 983. No. Tarjeta profesional
B35: 994. Con salvedades

Sheet Anexo 2
Q2: Declaración de Retenciones en la Fuente
BA6: Página | BI6: de | BV6: Hoja 2
B7: Espacio reservado para la DIAN | AP7: 4. Número de formulario
I12: 1 | S12: 2 | U12: 3 | V12: 3 | AI12: 4 | AW12: 6
C14: 90. A paises | N14: 91. Concepto de pago | W14: 92. País | AM14: Cód | AQ14: 93. Base | BG14: 94.Tarifa (%) | BP14: 95. Valor retención
B15: 1
B16: =+B15+1 -> 2
B17: 3
B18: 4
B19: 5
B20: 6
B21: 7
B22: 8
B23: 9
B24: 10
B25: 11
B26: 12
B27: 13
B28: 14
B29: 15
B30: 16
B31: 17
B32: 18
B33: 19
B34: 20
B35: 21
B36: 22
B37: 23
B38: 24
B39: 25
B40: 26
B41: 27
B42: 28
B43: 29
B44: 30
B45: 31
B46: 32
B47: 33
B48: 34
B49: 35
B50: 36
B51: 37
A52: =+B51 -> 37 | B52: 38
A53: =+S51 -> 0 | B53: 39
B54: 40
B55: 41
B56: 42
B57: 43
B58: 44
B59: 45
B60: 46
B61: 47
B62: 48
B63: 49

Sheet Instructivo (hidden)

Sheet Tablas (hidden)
I2: Periodo
I3: Enero | J3: 01
I4: Febrero | J4: 02
I5: Marzo | J5: 03
I6: Abril | J6: 04
I7: Mayo | J7: 05
I8: Junio | J8: 06
I9: Julio | J9: 07
I10: Agosto | J10: 08
I11: Septiembre | J11: 09
I12: Octubre | J12: 10
C13: Persona natural | G13: Código | I13: Noviembre | J13: 11
C14: Persona jurídica o sociedad de hecho | G14: 1 | I14: Diciembre | J14: 12
G15: 2
C16: Cód Dirección Seccional | G16: 3 | I16: Cód representación
C17: Nivel Central | D17: 00 | G17: 4 | I17: Persona natural | K17: Persona jurídica o sociedad de hecho
C18: Dirección Seccional de Impuestos y Aduanas de Armenia | D18: 01 | I18: Administrador judicial | J18: 01 | K18: Administrador judicial | L18: 01
C19: Dirección Seccional de Impuestos de Barranquilla | D19: 02 | G19: Código C o RF | I19: Administrador privado | J19: 02 | K19: Administrador privado | L19: 02
C20: Dirección Seccional de Aduanas de Bogotá | D20: 03 | G20: 1 | I20: Agente exclusivo de negocios en colombia | J20: 03 | K20: Agente exclusivo de negocios en colombia | L20: 03
C21: Dirección Seccional de Impuestos y Aduanas de Bucaramanga | D21: 04 | G21: 2 | I21: Agente oficioso | J21: 04 | K21: Agente oficioso | L21: 04
C22: Dirección Seccional de Impuestos de Cali | D22: 05 | I22: Albacea | J22: 05 | K22: Apoderado especial | L22: 06
C23: Dirección Seccional de Impuestos de Cartagena | D23: 06 | G23: Salvedad | I23: Apoderado especial | J23: 06 | K23: Apoderado general | L23: 07
C24: Dirección Seccional de Impuestos de Cúcuta | D24: 07 | G24: Sí | I24: Apoderado general | J24: 07 | K24: Comunero | L24: 09
C25: Dirección Seccional de Impuestos y Aduanas de Girardot | D25: 08 | G25: No | I25: Asignatario | J25: 08 | K25: Factor | L25: 12
C26: Dirección Seccional de Impuestos y Aduanas de Ibagué | D26: 09 | I26: Comunero | J26: 09 | K26: Funcionario delegado para cumplir deberes formales | L26: 13
C27: Dirección Seccional de Impuestos y Aduanas de Manizales | D27: 10 | I27: Curador | J27: 10 | K27: Liquidador | L27: 15
C28: Dirección Seccional de Impuestos de Medellín | D28: 11 | I28: Donatario | J28: 11 | K28: Mandatario | L28: 16
C29: Dirección Seccional de Impuestos y Aduanas de Montería | D29: 12 | I29: Factor | J29: 12 | K29: Representante legal principal | L29: 18
C30: Dirección Seccional de Impuestos y Aduanas de Neiva | D30: 13 | I30: Heredero con administración de bienes | J30: 14 | K30: Representante legal suplente | L30: 19
C31: Dirección Seccional de Impuestos y Aduanas de Pasto | D31: 14 | I31: Liquidador | J31: 15 | K31: Síndico | L31: 20
C32: Dirección Seccional de Impuestos y Aduanas de Palmira | D32: 15 | I32: Mandatario | J32: 16 | K32: Representante aduanero | L32: 22
C33: Dirección Seccional de Impuestos y Aduanas de Pereira | D33: 16 | I33: Padre | J33: 17 | K33: Liquidador suplente | L33: 23
C34: Dirección Seccional de Impuestos y Aduanas de Popayán | D34: 17 | I34: Tutor | J34: 21 | K34: Depositario Provisional | L34: 24
C35: Dirección Seccional de Impuestos y Aduanas de Quibdó | D35: 18 | I35: Representante aduanero | J35: 22 | K35: Agente Interventor | L35: 25
C36: Dirección Seccional de Impuestos y Aduanas de Santa Marta | D36: 19 | I36: Liquidador suplente | J36: 23 | K36: Agente de Aduanas | L36: 26
C37: Dirección Seccional de Impuestos y Aduanas de Tunja | D37: 20 | I37: Depositario Provisional | J37: 24 | K37: Funcionario delegado para cumplir funciones OEA | L37: 27
C38: Dirección Seccional de Impuestos y Aduanas de Tuluá | D38: 21 | I38: Agente Interventor | J38: 25 | K38: Representante legal empresa receptora inversión extranjera | L38: 30
C39: Dirección Seccional de Impuestos y Aduanas de Villavicencio | D39: 22 | I39: Heredero designado | J39: 28
C40: Dirección Seccional de Impuestos y Aduanas de Sincelejo | D40: 23 | I40: Persona Natural sin residencia en Colombia con EP | J40: 29
C41: Dirección Seccional de Impuestos y Aduanas de Valledupar | D41: 24 | I41: Representante legal empresa receptora inversión extranjera | J41: 30
C42: Dirección Seccional de Impuestos y Aduanas de Riohacha | D42: 25
C43: Dirección Seccional de Impuestos y Aduanas de Sogamoso | D43: 26
C44: Dirección Seccional de Impuestos y Aduanas de San Andrés | D44: 27 | I44: 90. A paises
C45: Dirección Seccional de Impuestos y Aduanas de Florencia | D45: 28 | I45: SIN CONVENIO
C46: Dirección Seccional de Impuestos y Aduanas de Barrancabermeja | D46: 29 | I46: CON CONVENIO
C47: Dirección Seccional de Impuestos de Grandes Contribuyentes | D47: 31
C48: Dirección Seccional de Impuestos de Bogotá | D48: 32 | I48: 91. Concepto de pago
C49: Dirección Seccional de Impuestos y Aduanas de Arauca | D49: 34 | I49: SIN CONVENIO
C50: Dirección Seccional de Impuestos y Aduanas de Buenaventura | D50: 35 | I50: 01. Enajenación de activos fijos y otras retenciones
C51: Dirección Seccional Delegada de Impuestos y Aduanas de Cartago | D51: 36 | I51: 02. Dividendos y participaciones
C52: Dirección Seccional de Impuestos y Aduanas de Ipiales | D52: 37 | I52: 03. Rendimientos financieros
C53: Dirección Seccional de Impuestos y Aduanas de Leticia | D53: 38 | I53: 04. Pagos por explotación de intangibles
C54: Dirección Seccional de Impuestos y Aduanas de Maicao | D54: 39 | I54: 05. Servicios
C55: Dirección Seccional Delegada de Impuestos y Aduanas de Tumaco | D55: 40 | I55: 06. Servicios técnicos, asistencia técnica, consultoría
C56: Dirección Seccional de Impuestos y Aduanas de Urabá | D56: 41 | I56: CON CONVENIO
C57: Dirección Seccional Delegada de Impuestos y Aduanas de Puerto Carreño | D57: 42 | I57: 01. Rentas Inmobiliarias
C58: Dirección Seccional Delegada de Impuestos y Aduanas de Inírida | D58: 43 | I58: 02. Dividendos y participaciones
C59: Dirección Seccional de Impuestos y Aduanas de Yopal | D59: 44 | I59: 03. Intereses
C60: Dirección Seccional Delegada de Impuestos y Aduanas Mitú | D60: 45 | I60: 04. Regalías
C61: Dirección Seccional Delegada de Impuestos y Aduanas de Puerto Asís | D61: 46 | I61: 05. Ganancias de capital
C62: Dirección Seccional de Aduanas de Cartagena | D62: 48 | I62: 06. Rentas de trabajo
C63: Dirección Seccional Delegada de Impuestos y Aduanas de San José de Guaviare | D63: 78 | I63: 07. Honorarios de directores
C64: Dirección Seccional Delegada de Impuestos y Aduanas de Pamplona | D64: 86 | I64: 08. Artistas y deportistas
C65: Dirección Seccional de Aduanas de Barranquilla | D65: 87 | I65: 09. Pensiones
C66: Dirección Seccional de Aduanas de Cali | D66: 88 | I66: 10. Funciones públicas
C67: Dirección Seccional de Aduanas de Cúcuta | D67: 89 | I67: 11. Estudiantes
C68: Dirección Seccional de Aduanas de Medellín | D68: 90 | I68: 12. Servicios
I69: 13. Servicios técnicos, asistencia técnica, consultoría
I70: 14. Otras rentas

Sheet 1 (hidden)
A6: Material relacionado
A10: Concepto | B10: Cuantía en UVT | C10: Cuantía en pesos | D10: Tarifa
A11: Ingresos originados en una relación laboral o legal y reglamentaria (personas naturales declarantes o no de renta). | B11: > 95 UVT | C11: > 3.610.000 | D11: Ver tabla del artículo 383 del ET.
A12: Honorarios y compensación de servicios personales por personas naturales que manifiestan que no han subcontratado dos o más personas. | B12: > 95 UVT | C12: > 3.610.000 | D12: Ver tabla del artículo 383 del ET.
A13: Servicios de aseo y vigilancia (la base será el 100 % del AIU, siempre que sea mayor o igual a 4 UVT). | B13: ≥ 4 UVT | C13: ≥ 152.000 | D13: 2.00%
A14: Servicios de hoteles, restaurantes y hospedajes para obligados a declarar renta. | B14: ≥ 4 | C14: ≥ 152.000 | D14: 3.50%
A15: Servicios de transporte nacional de carga. | B15: ≥ 4 UVT | C15: ≥ 152.000 | D15: 1.00%
A16: Servicios de transporte terrestre nacional de pasajeros. | B16: ≥ 27 | C16: ≥ 1.026.000 | D16: 3.50%
A17: Servicio de transporte aéreo y marítimo de pasajeros. | B17: ≥ 4 UVT | C17: ≥ 152.000 | D17: 1.00%
A18: Servicios en general cuando el beneficiario del pago o abono es persona jurídica, asimilada o persona natural obligada a declarar renta. | B18: ≥ 4 UVT | C18: ≥ 152.000 | D18: 4.00%
A19: Servicios en general cuando el beneficiario del pago o abono es persona natural no obligada a declarar renta. | B19: ≥ 4 UVT | C19: ≥ 152.000 | D19: 4% o 6%
A20: Servicios temporales de empleo (la base será el 100 % del AIU, siempre que sea mayor o igual a 4 UVT). | B20: ≥ 4 UVT | C20: ≥ 152.000 | D20: 1.00%
A21: Servicios integrales de salud prestados por una IPS. | B21: ≥ 4 UVT | C21: ≥ 152.000 | D21: 2.00%
A22: Servicios de licenciamiento y derechos de uso de software a obligados a declarar renta. | B22: No aplica | C22: > 0 | D22: 3.50%

Sheet 2 (hidden)
A6: Material relacionado
A10: Contenido | B10: Cuantía en UVT | C10: Cuantía en pesos | D10: Tarifa
A11: Compras en general para obligados a declarar renta. | B11: ≥ 27 UVT | C11: ≥ 1.026.000 | D11: 2.50%
A12: Compras en general para no obligados a declarar renta. | B12: ≥ 27 UVT | C12: ≥ 1.026.000 | D12: 3.50%
A13: Compra de café pergamino o cereza. | B13: > 160 UVT | C13: > 6.081.000 | D13: 0.50%
A14: Compras con tarjetas débito o crédito. | B14: No aplica | C14: > 0 | D14: 1.50%
A15: Compra de productos agrícolas o pecuarios sin procesamiento industrial. | B15: > 92 UVT | C15: > 3.496.000 | D15: 1.50%
A16: Compra de bienes y productos agrícolas o pecuarios con procesamiento industrial, llevada a cabo por personas jurídicas, sociedades de hecho y personas naturales agentes retenedores (vendedor obligado a declarar). | B16: ≥ 27 UVT | C16: ≥ 1.026.000 | D16: 2.50%
A17: Compra de bienes y productos agrícolas o pecuarios con procesamiento industrial, llevada a cabo por personas jurídicas, sociedades de hecho y personas naturales agentes retenedores (vendedor no obligado a declarar). | B17: ≥ 27 UVT | C17: ≥ 1.026.000 | D17: 3.50%
A18: Adquisición de bienes raíces para uso de vivienda de habitación por las primeras 20.000 UVT. | B18: Hasta 20.000 UVT | C18: ≤ 760.080.000 | D18: 1.00%
A19: Adquisición de bienes raíces para uso de vivienda de habitación, cuando exceda las 20.000 UVT (al excedente se le aplicará la tarifa aquí señalada). | B19: Más de 20.000 UVT | C19: > 760.080.000 | D19: 2.50%
A20: Adquisición de bienes raíces para uso diferente a vivienda de habitación, si el vendedor es persona jurídica, sociedad de hecho o persona natural declarante, de acuerdo con lo establecido en el artículo 368-2 del ET. | B20: ≥ 27 UVT | C20: ≥ 1.026.000 | D20: 2.50%
A21: Adquisición de vehículos. | B21: ≥ 27 UVT | C21: ≥ 1.026.000 | D21: 1.00%
A22: Compra de combustibles derivados del petróleo. | B22: No aplica | C22: > 0 | D22: 0.10%
A23: Enajenación de bienes raíces por parte de personas jurídicas. | B23: ≥ 27 UVT | C23: ≥ 980.000 | D23: 1% 0 2,5%

Sheet Formulas (hidden)
A2: =MOD((VALUE(MID(TEXT(Datos!E10,"000000000000000"),15,1))*3+VALUE(MID(TEXT(Datos!E10,"000000000000000"),14,1))*7+VALUE(MID(TEXT(Datos!E10,"000000000000000"),13,1))*13+VALUE(MID(TEXT(Datos!E10,"000000000000000"),12,1))*17+VALUE(MID(TEXT(Datos!E10,"000000000000000"),11,1))*19+VALUE(MID(TEXT(Datos!E10,"000000000000000"),10,1))*23+VALUE(MID(TEXT(Datos!E10,"000000000000000"),9,1))*29+VALUE(MID(TEXT(Datos!E10,"000000000000000"),8,1))*37+VALUE(MID(TEXT(Datos!E10,"000000000000000"),7,1))*41+VALUE(MID(TEXT(Datos!E10,"000000000000000"),6,1))*43+VALUE(MID(TEXT(Datos!E10,"000000000000000"),5,1))*47+VALUE(MID(TEXT(Datos!E10,"000000000000000"),4,1))*53+VALUE(MID(TEXT(Datos!E10,"000000000000000"),3,1))*59+VALUE(MID(TEXT(Datos!E10,"000000000000000"),2,1))*67+VALUE(MID(TEXT(Datos!E10,"000000000000000"),1,1))*71),11) -> 0
A3: =MOD((VALUE(MID(TEXT(Datos!E27,"000000000000000"),15,1))*3+VALUE(MID(TEXT(Datos!E27,"000000000000000"),14,1))*7+VALUE(MID(TEXT(Datos!E27,"000000000000000"),13,1))*13+VALUE(MID(TEXT(Datos!E27,"000000000000000"),12,1))*17+VALUE(MID(TEXT(Datos!E27,"000000000000000"),11,1))*19+VALUE(MID(TEXT(Datos!E27,"000000000000000"),10,1))*23+VALUE(MID(TEXT(Datos!E27,"000000000000000"),9,1))*29+VALUE(MID(TEXT(Datos!E27,"000000000000000"),8,1))*37+VALUE(MID(TEXT(Datos!E27,"000000000000000"),7,1))*41+VALUE(MID(TEXT(Datos!E27,"000000000000000"),6,1))*43+VALUE(MID(TEXT(Datos!E27,"000000000000000"),5,1))*47+VALUE(MID(TEXT(Datos!E27,"000000000000000"),4,1))*53+VALUE(MID(TEXT(Datos!E27,"000000000000000"),3,1))*59+VALUE(MID(TEXT(Datos!E27,"000000000000000"),2,1))*67+VALUE(MID(TEXT(Datos!E27,"000000000000000"),1,1))*71),11) -> 0
